[Event "Snabb-SM för veteraner, 50+ 2019"]
[Site "Schackcentrum, Vegagatan 20, Gothenburg, Sweden"]
[Date "2019.10.06"]
[Round "11.6"]
[White "Frisk, Hans"]
[Black "Svensson, Sven"]
[Result "0-1"]
[TimeControl "15 minutes + 10 seconds per move from move one"]
[WhiteFideId "1708570"]
[BlackFideId "1709240"]
[WhiteElo "1948"]
[BlackElo "2158"]

1. b3 {[%clk 00:15:17]} {[%emt 00:00:02]} e5 {[%clk 00:15:15]} {[%emt
00:00:05]} 2. Bb2 {[%clk 00:15:26]} {[%emt 00:00:02]} Nc6 {[%clk 00:15:23]}
{[%emt 00:00:02]} 3. e3 {[%clk 00:15:25]} {[%emt 00:00:10]} Nf6 {[%clk
00:15:09]} {[%emt 00:00:26]} 4. Nf3 {[%clk 00:14:33]} {[%emt 00:01:01]} d6
{[%clk 00:15:11]} {[%emt 00:00:09]} 5. d4 {[%clk 00:13:44]} {[%emt 00:00:58]}
exd4 {[%clk 00:15:02]} {[%emt 00:00:19]} 6. Nxd4 {[%clk 00:13:49]} {[%emt
00:00:05]} Be7 {[%clk 00:14:46]} {[%emt 00:00:27]} 7. g3 {[%clk 00:13:43]}
{[%emt 00:00:15]} O-O {[%clk 00:14:45]} {[%emt 00:00:11]} 8. Bg2 {[%clk
00:13:50]} {[%emt 00:00:04]} Bd7 {[%clk 00:14:17]} {[%emt 00:00:38]} 9. O-O
{[%clk 00:13:40]} {[%emt 00:00:19]} d5 {[%clk 00:13:24]} {[%emt 00:01:04]} 10.
Nc3 {[%clk 00:11:35]} {[%emt 00:02:14]} Nxd4 {[%clk 00:12:53]} {[%emt
00:00:40]} 11. Qxd4 {[%clk 00:10:52]} {[%emt 00:00:52]} c6 {[%clk 00:12:33]}
{[%emt 00:00:32]} 12. Rad1 {[%clk 00:09:31]} {[%emt 00:01:31]} Bf5 {[%clk
00:11:59]} {[%emt 00:00:43]} 13. Qd2 {[%clk 00:09:15]} {[%emt 00:00:25]} Qc7
{[%clk 00:10:25]} {[%emt 00:01:45]} 14. Rfe1 {[%clk 00:08:46]} {[%emt
00:00:38]} Rad8 {[%clk 00:10:19]} {[%emt 00:00:17]} 15. Qc1 {[%clk 00:08:35]}
{[%emt 00:00:21]} Rfe8 {[%clk 00:08:41]} {[%emt 00:01:48]} 16. Ne2 {[%clk
00:05:23]} {[%emt 00:03:22]} Bg4 {[%clk 00:06:24]} {[%emt 00:02:28]} 17. h3
{[%clk 00:04:00]} {[%emt 00:01:32]} Bd7 {[%clk 00:05:51]} {[%emt 00:00:44]} 18.
c4 {[%clk 00:03:33]} {[%emt 00:00:37]} dxc4 {[%clk 00:05:44]} {[%emt 00:00:17]}
19. Qxc4 {[%clk 00:03:20]} {[%emt 00:00:23]} Be6 {[%clk 00:05:42]} {[%emt
00:00:13]} 20. Qc3 {[%clk 00:03:03]} {[%emt 00:00:25]} a5 {[%clk 00:05:42]}
{[%emt 00:00:11]} 21. Nd4 {[%clk 00:02:40]} {[%emt 00:00:32]} Bb4 {[%clk
00:05:35]} {[%emt 00:00:19]} 22. Nxe6 {[%clk 00:02:39]} {[%emt 00:00:10]} Rxe6
{[%clk 00:04:31]} {[%emt 00:01:14]} 23. Rxd8+ {[%clk 00:02:17]} {[%emt
00:00:32]} Qxd8 {[%clk 00:04:39]} {[%emt 00:00:02]} 24. Qc1 {[%clk 00:02:14]}
{[%emt 00:00:13]} Bxe1 {[%clk 00:04:24]} {[%emt 00:00:26]} 25. Qxe1 {[%clk
00:02:23]} Rd6 {[%clk 00:04:29]} {[%emt 00:00:06]} 26. Qc3 {[%clk 00:02:11]}
{[%emt 00:00:21]} h6 {[%clk 00:04:10]} {[%emt 00:00:30]} 27. e4 {[%clk
00:01:42]} {[%emt 00:00:38]} Rd1+ {[%clk 00:04:11]} {[%emt 00:00:08]} 28. Kh2
{[%clk 00:01:50]} {[%emt 00:00:03]} Qd2 {[%clk 00:04:18]} {[%emt 00:00:03]} 29.
Qf3 {[%clk 00:01:14]} {[%emt 00:00:46]} Re1 {[%clk 00:01:39]} {[%emt 00:02:50]}
30. Bxf6 {[%clk 00:01:03]} {[%emt 00:00:20]} gxf6 {[%clk 00:01:48]} {[%emt
00:00:02]} 31. Qxf6 {[%clk 00:01:08]} {[%emt 00:00:03]} Re2 {[%clk 00:01:52]}
{[%emt 00:00:08]} 32. Kg1 {[%clk 00:00:26]} {[%emt 00:00:51]} Qe1+ {[%clk
00:01:56]} {[%emt 00:00:06]} 33. Kh2 {[%clk 00:00:35]} Qxf2 {[%clk 00:01:58]}
{[%emt 00:00:09]} 0-1

[Event "Snabb-SM för veteraner, 50+ 2019"]
[Site "Schackcentrum, Vegagatan 20, Gothenburg, Sweden"]
[Date "2019.10.06"]
[Round "11.7"]
[White "Madebrink, Lars"]
[Black "Andersson, Christer"]
[Result "1-0"]
[TimeControl "15 minutes + 10 seconds per move from move one"]
[WhiteFideId "1701347"]
[BlackFideId "1734857"]
[WhiteElo "2179"]
[BlackElo "1678"]

1. d4 {[%clk 00:15:19]} {[%emt 00:00:01]} Nf6 {[%clk 00:15:19]} {[%emt
00:00:02]} 2. c4 {[%clk 00:15:28]} e6 {[%clk 00:15:26]} {[%emt 00:00:02]} 3.
Nf3 {[%clk 00:15:33]} {[%emt 00:00:06]} d5 {[%clk 00:15:35]} {[%emt 00:00:01]}
4. g3 {[%clk 00:15:37]} {[%emt 00:00:06]} dxc4 {[%clk 00:15:44]} {[%emt
00:00:02]} 5. Qa4+ {[%clk 00:15:44]} {[%emt 00:00:03]} Nbd7 {[%clk 00:15:52]}
{[%emt 00:00:02]} 6. Bg2 {[%clk 00:15:51]} {[%emt 00:00:03]} a6 {[%clk
00:16:00]} {[%emt 00:00:02]} 7. Qxc4 {[%clk 00:16:00]} b5 {[%clk 00:16:09]} 8.
Qc2 {[%clk 00:15:41]} {[%emt 00:00:29]} Bb7 {[%clk 00:16:18]} {[%emt 00:00:02]}
9. O-O {[%clk 00:15:44]} {[%emt 00:00:07]} c5 {[%clk 00:16:19]} {[%emt
00:00:09]} 10. dxc5 {[%clk 00:15:02]} {[%emt 00:00:52]} Bxc5 {[%clk 00:16:26]}
{[%emt 00:00:02]} 11. Nc3 {[%clk 00:15:07]} {[%emt 00:00:05]} O-O {[%clk
00:16:23]} {[%emt 00:00:13]} 12. Bf4 {[%clk 00:15:06]} {[%emt 00:00:11]} Qb6
{[%clk 00:15:54]} {[%emt 00:00:39]} 13. Rac1 {[%emt 00:00:19]} Rac8 {[%emt
00:00:10]} 14. Qb3 {[%clk 00:14:08]} {[%emt 00:00:40]} Ne4 {[%clk 00:14:39]}
{[%emt 00:01:24]} 15. Nxe4 {[%clk 00:14:09]} {[%emt 00:00:09]} Bxe4 {[%clk
00:14:47]} {[%emt 00:00:02]} 16. Ng5 {[%clk 00:13:31]} {[%emt 00:00:48]} Bxg2
{[%clk 00:14:31]} {[%emt 00:00:26]} 17. Kxg2 {[%clk 00:13:39]} {[%emt
00:00:02]} h6 {[%clk 00:13:52]} {[%emt 00:00:50]} 18. Ne4 {[%clk 00:13:36]}
{[%emt 00:00:11]} Qb7 {[%clk 00:13:38]} {[%emt 00:00:25]} 19. Qf3 {[%clk
00:13:32]} {[%emt 00:00:14]} Qb6 {[%clk 00:13:09]} {[%emt 00:00:39]} 20. Nxc5
{[%clk 00:13:07]} {[%emt 00:00:34]} Nxc5 {[%clk 00:12:41]} {[%emt 00:00:39]} 21.
Be3 {[%clk 00:12:56]} {[%emt 00:00:20]} Qd6 {[%clk 00:12:47]} {[%emt 00:00:05]}
22. Rfd1 {[%clk 00:12:39]} {[%emt 00:00:26]} Qe7 {[%clk 00:12:10]} {[%emt
00:00:47]} 23. Qg4 {[%clk 00:12:28]} {[%emt 00:00:21]} f5 {[%clk 00:11:42]}
{[%emt 00:00:38]} 24. Qb4 {[%clk 00:12:25]} {[%emt 00:00:13]} Qb7+ {[%clk
00:11:40]} {[%emt 00:00:13]} 25. f3 {[%clk 00:12:33]} {[%emt 00:00:01]} Na4
{[%clk 00:10:50]} {[%emt 00:01:01]} 26. b3 {[%clk 00:12:00]} {[%emt 00:00:43]}
Nb6 {[%clk 00:10:45]} {[%emt 00:00:15]} 27. Qd6 {[%clk 00:11:54]} {[%emt
00:00:15]} Na8 {[%clk 00:10:02]} {[%emt 00:00:54]} 28. Qxe6+ {[%clk 00:11:41]}
{[%emt 00:00:23]} Kh8 {[%clk 00:10:02]} {[%emt 00:00:10]} 29. Rd7 {[%clk
00:10:49]} {[%emt 00:01:02]} Rc7 {[%clk 00:09:29]} {[%emt 00:00:44]} 30. Rcxc7
{[%clk 00:10:38]} {[%emt 00:00:20]} Nxc7 {[%clk 00:09:37]} {[%emt 00:00:02]} 31.
Qe7 {[%clk 00:10:46]} {[%emt 00:00:01]} 1-0

[Event "Snabb-SM för veteraner, 50+ 2019"]
[Site "Schackcentrum, Vegagatan 20, Gothenburg, Sweden"]
[Date "2019.10.06"]
[Round "11.8"]
[White "Borvander, Tom"]
[Black "Hautajarvi, Jukka"]
[Result "0-1"]
[TimeControl "15 minutes + 10 seconds per move from move one"]
[WhiteFideId "1707388"]
[BlackFideId "1716190"]
[WhiteElo "2066"]
[BlackElo "2145"]

1. d4 {[%clk 00:15:19]} Nf6 {[%clk 00:15:18]} {[%emt 00:00:02]} 2. c4 {[%clk
00:15:27]} {[%emt 00:00:02]} e6 {[%clk 00:15:25]} {[%emt 00:00:03]} 3. g3
{[%clk 00:15:35]} {[%emt 00:00:02]} c5 {[%clk 00:15:32]} {[%emt 00:00:03]} 4.
d5 {[%clk 00:15:43]} {[%emt 00:00:02]} d6 {[%clk 00:15:39]} {[%emt 00:00:02]} 5.
Nc3 {[%clk 00:15:42]} {[%emt 00:00:12]} e5 {[%clk 00:15:47]} {[%emt 00:00:01]}
6. e4 {[%clk 00:15:43]} {[%emt 00:00:09]} Be7 {[%clk 00:15:56]} 7. Bg2 {[%clk
00:15:46]} {[%emt 00:00:07]} O-O {[%clk 00:16:04]} {[%emt 00:00:02]} 8. Nf3
{[%clk 00:15:31]} {[%emt 00:00:25]} Nbd7 {[%clk 00:16:12]} {[%emt 00:00:04]} 9.
O-O {[%clk 00:15:25]} {[%emt 00:00:16]} Ne8 {[%clk 00:16:13]} {[%emt 00:00:09]}
10. Bd2 {[%clk 00:14:31]} {[%emt 00:01:03]} g6 {[%clk 00:16:20]} {[%emt
00:00:02]} 11. h4 {[%clk 00:13:59]} {[%emt 00:01:01]} Ng7 {[%clk 00:16:23]}
{[%emt 00:00:09]} 12. Bh6 {[%clk 00:13:19]} {[%emt 00:00:50]} Nf6 {[%clk
00:16:29]} {[%emt 00:00:04]} 13. Nh2 {[%clk 00:12:51]} {[%emt 00:00:38]} a6
{[%clk 00:16:32]} {[%emt 00:00:08]} 14. Qe2 {[%clk 00:12:38]} {[%emt 00:00:23]}
Bd7 {[%clk 00:16:17]} {[%emt 00:00:24]} 15. a4 {[%clk 00:12:34]} {[%emt
00:00:15]} Qc8 {[%clk 00:14:33]} {[%emt 00:01:54]} 16. Rfb1 {[%clk 00:11:55]}
{[%emt 00:00:49]} a5 {[%clk 00:14:37]} {[%emt 00:00:06]} 17. Nb5 {[%clk
00:11:45]} {[%emt 00:00:20]} Ng4 {[%clk 00:14:06]} {[%emt 00:00:41]} 18. Bd2
{[%clk 00:09:04]} {[%emt 00:02:50]} b6 {[%clk 00:14:03]} {[%emt 00:00:14]} 19.
Ra3 {[%clk 00:08:52]} {[%emt 00:00:22]} Nxh2 {[%clk 00:13:37]} {[%emt
00:00:35]} 20. Kxh2 {[%clk 00:09:01]} {[%emt 00:00:01]} f5 {[%clk 00:13:03]}
{[%emt 00:00:45]} 21. Rf1 {[%clk 00:07:33]} {[%emt 00:01:37]} Qd8 {[%clk
00:12:36]} {[%emt 00:00:38]} 22. f4 {[%clk 00:07:22]} {[%emt 00:00:21]} Bxb5
{[%clk 00:12:16]} {[%emt 00:00:29]} 23. axb5 {[%clk 00:07:22]} {[%emt
00:00:10]} Bf6 {[%clk 00:12:24]} {[%emt 00:00:01]} 24. Bh3 {[%clk 00:06:51]}
{[%emt 00:00:41]} fxe4 {[%clk 00:11:17]} {[%emt 00:01:18]} 25. f5 {[%clk
00:05:48]} {[%emt 00:01:14]} gxf5 {[%clk 00:09:26]} {[%emt 00:02:01]} 26. Bxf5
{[%clk 00:05:54]} {[%emt 00:00:03]} Nxf5 {[%clk 00:09:34]} {[%emt 00:00:02]} 27.
Rxf5 {[%clk 00:06:02]} {[%emt 00:00:02]} Bg7 {[%clk 00:09:35]} {[%emt
00:00:09]} 28. Qxe4 {[%clk 00:05:58]} {[%emt 00:00:14]} Qd7 {[%clk 00:05:15]}
{[%emt 00:04:31]} 29. Raf3 {[%clk 00:05:58]} {[%emt 00:00:09]} Rxf5 {[%clk
00:05:13]} {[%emt 00:00:13]} 30. Rxf5 {[%clk 00:05:21]} {[%emt 00:00:47]} Rf8
{[%clk 00:04:30]} {[%emt 00:00:53]} 31. Rxf8+ {[%clk 00:05:26]} {[%emt
00:00:04]} Kxf8 {[%clk 00:04:01]} {[%emt 00:00:38]} 32. b3 {[%clk 00:05:00]}
{[%emt 00:00:36]} Qf7 {[%clk 00:02:39]} {[%emt 00:01:32]} 33. Kg2 {[%emt
00:00:05]} Kg8 {[%clk 00:02:46]} 34. Qg4 {[%clk 00:04:30]} {[%emt 00:00:45]}
Kf8 {[%clk 00:00:37]} {[%emt 00:02:22]} 35. Qc8+ {[%clk 00:04:01]} {[%emt
00:00:39]} Qe8 {[%clk 00:00:41]} {[%emt 00:00:06]} 36. Qf5+ {[%clk 00:04:02]}
{[%emt 00:00:08]} Kg8 {[%clk 00:00:45]} {[%emt 00:00:07]} 37. Kf3 {[%clk
00:03:28]} {[%emt 00:00:43]} Kh8 {[%clk 00:00:46]} {[%emt 00:00:09]} 38. Ke4
{[%clk 00:03:28]} {[%emt 00:00:11]} h6 {[%clk 00:00:50]} {[%emt 00:00:06]} 39.
h5 {[%clk 00:02:58]} {[%emt 00:00:39]} a4 {[%clk 00:00:59]} {[%emt 00:00:01]}
40. bxa4 {[%clk 00:03:02]} {[%emt 00:00:07]} Qa8 {[%clk 00:01:09]} 41. a5
{[%clk 00:01:41]} {[%emt 00:01:31]} bxa5 {[%clk 00:01:18]} {[%emt 00:00:02]} 42.
Qd7 {[%emt 00:00:10]} Qf8 {[%clk 00:01:24]} {[%emt 00:00:02]} 43. Qf5 {[%clk
00:00:45]} {[%emt 00:01:06]} Qa8 {[%clk 00:01:30]} {[%emt 00:00:05]} 44. b6
{[%clk 00:00:48]} {[%emt 00:00:07]} a4 {[%clk 00:01:31]} {[%emt 00:00:07]} 45.
Qd7 {[%clk 00:00:54]} {[%emt 00:00:05]} Qa6 {[%clk 00:01:28]} {[%emt 00:00:13]}
46. b7 {[%clk 00:00:52]} {[%emt 00:00:13]} Qxc4+ {[%clk 00:01:36]} {[%emt
00:00:02]} 47. Kf5 {[%clk 00:00:45]} {[%emt 00:00:16]} Qf1+ {[%clk 00:00:56]}
{[%emt 00:00:50]} 48. Kg4 {[%clk 00:00:29]} {[%emt 00:00:24]} Qe2+ {[%clk
00:01:00]} {[%emt 00:00:08]} 0-1

[Event "Snabb-SM för veteraner, 50+ 2019"]
[Site "Schackcentrum, Vegagatan 20, Gothenburg, Sweden"]
[Date "2019.10.06"]
[Round "11.9"]
[White "Naslund, Mikael"]
[Black "Kirppo, Ronny"]
[Result "1-0"]
[TimeControl "15 minutes + 10 seconds per move from move one"]
[WhiteTitle "FM"]
[WhiteFideId "1708260"]
[BlackFideId "1724681"]
[WhiteElo "2076"]
[BlackElo "1877"]

1. d4 {[%clk 00:15:19]} {[%emt 00:16:17]} Nf6 {[%clk 00:15:19]} 2. c4 {[%clk
00:15:27]} {[%emt 00:00:02]} e5 {[%clk 00:15:26]} {[%emt 00:00:03]} 3. dxe5
{[%clk 00:15:33]} {[%emt 00:00:05]} Ng4 {[%clk 00:15:35]} 4. Bf4 {[%clk
00:15:28]} {[%emt 00:00:14]} Nc6 {[%clk 00:15:18]} {[%emt 00:00:28]} 5. Nf3
{[%clk 00:15:35]} {[%emt 00:00:02]} Bb4+ {[%clk 00:15:25]} {[%emt 00:00:03]} 6.
Nbd2 {[%clk 00:15:43]} {[%emt 00:00:02]} Qe7 {[%clk 00:15:31]} {[%emt
00:00:05]} 7. e3 {[%clk 00:15:48]} {[%emt 00:00:04]} Ngxe5 {[%clk 00:15:24]}
{[%emt 00:00:17]} 8. Nxe5 {[%clk 00:15:55]} {[%emt 00:00:04]} Nxe5 {[%clk
00:15:32]} {[%emt 00:00:01]} 9. Be2 {[%clk 00:15:57]} {[%emt 00:00:08]} O-O
{[%clk 00:15:34]} {[%emt 00:00:08]} 10. O-O {[%clk 00:16:01]} {[%emt 00:00:06]}
b6 {[%clk 00:13:14]} {[%emt 00:02:31]} 11. Nf3 {[%clk 00:15:29]} {[%emt
00:00:42]} Bd6 {[%clk 00:12:05]} {[%emt 00:01:19]} 12. Nd4 {[%clk 00:15:21]}
{[%emt 00:00:17]} Bb7 {[%clk 00:09:46]} {[%emt 00:02:29]} 13. Nf5 {[%clk
00:14:50]} {[%emt 00:00:41]} Qe6 {[%clk 00:09:27]} {[%emt 00:00:29]} 14. Nxd6
{[%clk 00:14:56]} {[%emt 00:00:05]} cxd6 {[%clk 00:09:36]} 15. Qd4 {[%clk
00:14:40]} {[%emt 00:00:25]} Rac8 {[%clk 00:09:17]} {[%emt 00:00:30]} 16. b3
{[%clk 00:14:12]} {[%emt 00:00:38]} Rc5 {[%clk 00:06:05]} {[%emt 00:03:22]} 17.
Rfd1 {[%clk 00:13:47]} {[%emt 00:00:35]} Qg6 {[%clk 00:05:55]} {[%emt
00:00:20]} 18. Bg3 {[%clk 00:12:55]} {[%emt 00:01:02]} Re8 {[%clk 00:03:44]}
{[%emt 00:02:20]} 19. Qxd6 {[%clk 00:12:30]} {[%emt 00:00:35]} f6 {[%clk
00:03:19]} {[%emt 00:00:35]} 20. Bf1 {[%clk 00:09:55]} {[%emt 00:02:45]} h5
{[%clk 00:02:12]} {[%emt 00:01:17]} 21. Bxe5 {[%clk 00:09:13]} {[%emt
00:00:52]} Rcxe5 {[%clk 00:02:21]} {[%emt 00:00:02]} 22. Qxd7 {[%clk 00:08:29]}
{[%emt 00:00:54]} Bf3 {[%clk 00:02:29]} {[%emt 00:00:01]} 23. Rd4 {[%clk
00:06:55]} {[%emt 00:01:44]} Rg5 {[%clk 00:02:01]} {[%emt 00:00:38]} 24. g3
{[%clk 00:05:12]} {[%emt 00:01:53]} Rxe3 {[%clk 00:02:09]} {[%emt 00:00:03]} 25.
fxe3 {[%clk 00:04:34]} {[%emt 00:00:48]} Rxg3+ {[%clk 00:02:17]} 26. Kf2 {[%clk
00:04:36]} {[%emt 00:00:09]} h4 {[%clk 00:00:15]} {[%emt 00:02:12]} 27. Qd8+
{[%emt 00:01:55]} Kf7 28. Qc7+ {[%clk 00:02:42]} {[%emt 00:00:18]} Kg8 {[%clk
00:00:32]} {[%emt 00:00:02]} 29. hxg3 {[%clk 00:02:20]} {[%emt 00:00:32]} 1-0

[Event "Snabb-SM för veteraner, 50+ 2019"]
[Site "Schackcentrum, Vegagatan 20, Gothenburg, Sweden"]
[Date "2019.10.06"]
[Round "11.10"]
[White "Jacobsson, Lennart"]
[Black "Ansner, Bjorn"]
[Result "1/2-1/2"]
[TimeControl "15 minutes + 10 seconds per move from move one"]
[WhiteFideId "1753320"]
[BlackFideId "1702769"]
[WhiteElo "1833"]
[BlackElo "1934"]

1. e4 {[%clk 00:15:03]} {[%emt 00:00:16]} c5 {[%clk 00:15:14]} {[%emt
00:00:06]} 2. Nf3 {[%clk 00:15:09]} {[%emt 00:00:05]} Nc6 {[%clk 00:15:18]}
{[%emt 00:00:06]} 3. c3 {[%clk 00:15:15]} {[%emt 00:00:04]} d5 {[%clk
00:14:37]} {[%emt 00:00:50]} 4. exd5 {[%clk 00:15:23]} {[%emt 00:00:04]} Qxd5
{[%clk 00:14:40]} {[%emt 00:00:06]} 5. d4 {[%clk 00:15:31]} {[%emt 00:00:02]}
Bg4 {[%clk 00:14:21]} {[%emt 00:00:29]} 6. Be2 {[%clk 00:14:33]} {[%emt
00:01:09]} e6 {[%clk 00:13:15]} {[%emt 00:01:16]} 7. O-O {[%clk 00:13:32]}
{[%emt 00:01:11]} Nf6 {[%clk 00:12:41]} {[%emt 00:00:43]} 8. h3 {[%clk
00:13:23]} {[%emt 00:00:19]} Bh5 {[%clk 00:12:16]} {[%emt 00:00:36]} 9. Be3
{[%clk 00:13:31]} {[%emt 00:00:03]} cxd4 {[%clk 00:11:55]} {[%emt 00:00:30]} 10.
cxd4 {[%clk 00:13:38]} {[%emt 00:00:04]} Be7 {[%clk 00:11:37]} {[%emt
00:00:28]} 11. Nc3 {[%clk 00:13:43]} {[%emt 00:00:06]} Qd8 {[%clk 00:10:50]}
{[%emt 00:00:56]} 12. Qb3 {[%clk 00:12:44]} {[%emt 00:01:09]} O-O {[%clk
00:08:42]} {[%emt 00:02:17]} 13. Rfd1 {[%clk 00:09:25]} {[%emt 00:03:30]} Na5
{[%clk 00:07:16]} {[%emt 00:01:35]} 14. Qa4 {[%clk 00:08:36]} {[%emt 00:00:59]}
Nd5 {[%clk 00:05:42]} {[%emt 00:01:44]} 15. Nxd5 {[%clk 00:06:46]} {[%emt
00:02:01]} exd5 {[%clk 00:05:48]} {[%emt 00:00:03]} 16. Rac1 {[%clk 00:06:15]}
{[%emt 00:00:41]} a6 {[%clk 00:05:14]} {[%emt 00:00:44]} 17. b4 {[%clk
00:05:36]} {[%emt 00:00:50]} Nc6 {[%clk 00:05:06]} {[%emt 00:00:18]} 18. a3
{[%clk 00:05:42]} {[%emt 00:00:04]} Qd6 {[%clk 00:04:24]} {[%emt 00:00:52]} 19.
Qc2 {[%clk 00:05:07]} {[%emt 00:00:45]} Bg6 {[%clk 00:04:09]} {[%emt 00:00:24]}
20. Bd3 {[%clk 00:04:47]} {[%emt 00:00:29]} Rfc8 {[%clk 00:03:46]} {[%emt
00:00:35]} 21. Qe2 {[%clk 00:04:41]} {[%emt 00:00:16]} Bxd3 {[%clk 00:03:40]}
{[%emt 00:00:16]} 22. Qxd3 {[%clk 00:04:48]} {[%emt 00:00:03]} Bf6 {[%clk
00:03:38]} {[%emt 00:00:11]} 23. Re1 {[%clk 00:04:15]} {[%emt 00:00:43]}
1/2-1/2

[Event "Snabb-SM för veteraner, 50+ 2019"]
[Site "Schackcentrum, Vegagatan 20, Gothenburg, Sweden"]
[Date "2019.10.06"]
[Round "11.11"]
[White "Sandgren, Per-Olov"]
[Black "Karlsson, Ulf"]
[Result "0-1"]
[TimeControl "15 minutes + 10 seconds per move from move one"]
[WhiteFideId "1713884"]
[BlackFideId "1721674"]
[WhiteElo "1458"]
[BlackElo "2035"]

1. e4 {[%clk 00:15:19]} c5 {[%clk 00:15:17]} {[%emt 00:00:04]} 2. Nf3 {[%clk
00:15:18]} {[%emt 00:00:10]} Nc6 {[%clk 00:15:25]} {[%emt 00:00:02]} 3. d4
{[%clk 00:15:26]} {[%emt 00:00:03]} cxd4 {[%clk 00:15:34]} {[%emt 00:00:02]} 4.
Nxd4 {[%clk 00:15:34]} e5 {[%clk 00:15:43]} {[%emt 00:00:02]} 5. Nb3 {[%clk
00:15:27]} {[%emt 00:00:17]} Nf6 {[%clk 00:15:50]} {[%emt 00:00:03]} 6. Nc3
{[%clk 00:15:34]} {[%emt 00:00:02]} Bb4 {[%clk 00:15:58]} {[%emt 00:00:03]} 7.
Bd3 {[%clk 00:15:31]} {[%emt 00:00:12]} d5 {[%clk 00:15:54]} {[%emt 00:00:14]}
8. exd5 {[%clk 00:15:29]} {[%emt 00:00:12]} Nxd5 {[%clk 00:16:02]} {[%emt
00:00:02]} 9. Bd2 {[%clk 00:15:18]} {[%emt 00:00:20]} Nxc3 {[%clk 00:16:08]}
{[%emt 00:00:05]} 10. bxc3 {[%clk 00:15:17]} {[%emt 00:00:11]} Be7 {[%clk
00:16:16]} {[%emt 00:00:02]} 11. Qf3 {[%clk 00:15:00]} {[%emt 00:00:26]} O-O
{[%clk 00:16:00]} {[%emt 00:00:27]} 12. Rd1 {[%clk 00:14:26]} {[%emt 00:00:44]}
Be6 {[%clk 00:14:50]} {[%emt 00:01:20]} 13. Be3 {[%clk 00:13:10]} {[%emt
00:01:25]} Qc8 {[%emt 00:01:25]} 14. h3 {[%clk 00:12:42]} {[%emt 00:00:38]} f5
{[%clk 00:13:39]} {[%emt 00:00:08]} 15. Qe2 {[%clk 00:12:09]} {[%emt 00:00:41]}
b6 {[%clk 00:13:06]} {[%emt 00:00:44]} 16. Bc4 {[%clk 00:11:33]} {[%emt
00:00:46]} Kh8 {[%clk 00:12:35]} {[%emt 00:00:41]} 17. O-O {[%clk 00:11:12]}
{[%emt 00:00:31]} f4 {[%clk 00:10:51]} {[%emt 00:01:54]} 18. Bxe6 {[%clk
00:10:51]} {[%emt 00:00:31]} Qxe6 {[%clk 00:10:55]} {[%emt 00:00:07]} 19. Bc1
{[%clk 00:10:15]} {[%emt 00:00:46]} f3 {[%clk 00:10:29]} {[%emt 00:00:36]} 20.
Qe4 {[%clk 00:09:35]} {[%emt 00:00:49]} Rac8 {[%clk 00:09:54]} {[%emt
00:00:46]} 21. Rd3 {[%clk 00:09:08]} {[%emt 00:00:37]} fxg2 {[%clk 00:10:00]}
{[%emt 00:00:04]} 22. Kxg2 {[%clk 00:07:42]} {[%emt 00:01:35]} Bf6 {[%clk
00:10:09]} {[%emt 00:00:03]} 23. Rfd1 {[%clk 00:06:44]} {[%emt 00:01:07]} Ne7
{[%clk 00:09:59]} {[%emt 00:00:20]} 24. Rd6 {[%clk 00:06:35]} {[%emt 00:00:19]}
Qf7 {[%clk 00:09:32]} {[%emt 00:00:37]} 25. Bb2 {[%clk 00:05:35]} {[%emt
00:01:10]} Rc4 {[%clk 00:09:22]} {[%emt 00:00:21]} 26. Qe2 {[%clk 00:03:57]}
{[%emt 00:01:48]} Qg6+ {[%clk 00:08:01]} {[%emt 00:01:31]} 27. Kh1 {[%clk
00:03:24]} {[%emt 00:00:42]} Rh4 {[%clk 00:06:56]} {[%emt 00:01:17]} 28. R6d3
{[%clk 00:02:20]} {[%emt 00:01:14]} Nf5 {[%clk 00:06:27]} {[%emt 00:00:38]} 29.
Rg1 {[%clk 00:02:18]} {[%emt 00:00:12]} Qf7 {[%clk 00:06:31]} {[%emt 00:00:06]}
30. Rf3 {[%clk 00:01:53]} {[%emt 00:00:32]} Qe6 {[%clk 00:05:12]} {[%emt
00:01:32]} 31. Nd4 {[%clk 00:00:58]} {[%emt 00:01:05]} Nxd4 {[%clk 00:04:52]}
{[%emt 00:00:30]} 32. cxd4 {[%clk 00:00:51]} {[%emt 00:00:17]} Rxh3+ {[%clk
00:03:24]} {[%emt 00:01:38]} 0-1